[Event "Live Chess"]
[Site "Chess.com"]
[Date "2023.05.20"]
[Round "-"]
[White "Vladyslav2008"]
[Black "LiamClery2020"]
[Result "1-0"]
[WhiteElo "2170"]
[BlackElo "2079"]
[TimeControl "300"]
[EndTime "11:48:15 PDT"]
[Termination "Vladyslav2008 won by resignation"]

1. d4 {[%clk 0:04:58.4]} 1... Nf6 {[%clk 0:04:58]} 2. c4 {[%clk 0:04:57]} 2...
g6 {[%clk 0:04:54.8]} 3. Nc3 {[%clk 0:04:55.7]} 3... d5 {[%clk 0:04:52.7]} 4.
Nf3 {[%clk 0:04:54.5]} 4... Bg7 {[%clk 0:04:51.5]} 5. cxd5 {[%clk 0:04:53.8]}
5... Nxd5 {[%clk 0:04:49.5]} 6. e4 {[%clk 0:04:53.5]} 6... Nxc3 {[%clk
0:04:48.7]} 7. bxc3 {[%clk 0:04:53.2]} 7... c5 {[%clk 0:04:48.6]} 8. Be3 {[%clk
0:04:51]} 8... Bg4 {[%clk 0:04:44.9]} 9. Qd2 {[%clk 0:04:44.3]} 9... Nc6 {[%clk
0:04:40.8]} 10. d5 {[%clk 0:04:38]} 10... Bxf3 {[%clk 0:04:38.4]} 11. gxf3
{[%clk 0:04:36.8]} 11... Ne5 {[%clk 0:04:37.3]} 12. Be2 {[%clk 0:04:35.6]} 12...
O-O {[%clk 0:04:29.8]} 13. Rb1 {[%clk 0:04:27.1]} 13... b6 {[%clk 0:04:28]} 14.
f4 {[%clk 0:04:24.8]} 14... Nd7 {[%clk 0:04:26.8]} 15. e5 {[%clk 0:04:19.1]}
15... f5 {[%clk 0:04:21]} 16. h4 {[%clk 0:04:08.2]} 16... Rc8 {[%clk 0:04:11.6]}
17. h5 {[%clk 0:04:05]} 17... c4 {[%clk 0:04:10.2]} 18. hxg6 {[%clk 0:04:03.3]}
18... hxg6 {[%clk 0:04:09.2]} 19. d6 {[%clk 0:03:53.4]} 19... exd6 {[%clk
0:04:07.6]} 20. Qxd6 {[%clk 0:03:52]} 20... Rf7 {[%clk 0:03:57.2]} 21. e6 {[%clk
0:03:48.7]} 1-0

[Event "Live Chess"]
[Site "Chess.com"]
[Date "2023.05.20"]
[Round "-"]
[White "alanmike75"]
[Black "zdanevych"]
[Result "0-1"]
[WhiteElo "1508"]
[BlackElo "1534"]
[TimeControl "300"]
[EndTime "11:48:16 PDT"]
[Termination "zdanevych won on time"]

1. e4 {[%clk 0:04:58.1]} 1... c5 {[%clk 0:04:58.8]} 2. Nf3 {[%clk 0:04:56.6]}
2... e6 {[%clk 0:04:58.2]} 3. d4 {[%clk 0:04:55.6]} 3... d5 {[%clk 0:04:57.5]}
4. exd5 {[%clk 0:04:53.8]} 4... exd5 {[%clk 0:04:57.4]} 5. dxc5 {[%clk
0:04:51.3]} 5... Bxc5 {[%clk 0:04:57.3]} 6. Bb5+ {[%clk 0:04:48.7]} 6... Nc6
{[%clk 0:04:56.7]} 7. Qe2+ {[%clk 0:04:46.9]} 7... Be6 {[%clk 0:04:54.5]} 8. O-O
{[%clk 0:04:43.2]} 8... a6 {[%clk 0:04:53.2]} 9. Bxc6+ {[%clk 0:04:41.4]} 9...
bxc6 {[%clk 0:04:53.1]} 10. c3 {[%clk 0:04:40.4]} 10... h6 {[%clk 0:04:49.2]}
11. Nd4 {[%clk 0:04:37.6]} 11... Qd6 {[%clk 0:04:43]} 12. Re1 {[%clk 0:04:28.1]}
12... Bxd4 {[%clk 0:04:39.5]} 13. cxd4 {[%clk 0:04:26.2]} 13... Nf6 {[%clk
0:04:38.1]} 14. Nc3 {[%clk 0:04:23.9]} 14... O-O {[%clk 0:04:36.4]} 15. g3
{[%clk 0:04:17.3]} 15... Bg4 {[%clk 0:04:28.2]} 16. Qe5 {[%clk 0:04:12.9]} 16...
Qb4 {[%clk 0:04:16.4]} 17. a3 {[%clk 0:03:38.7]} 17... Qb7 {[%clk 0:03:57]} 18.
Qf4 {[%clk 0:02:54.4]} 18... Be6 {[%clk 0:03:45]} 19. Rb1 {[%clk 0:02:47.7]}
19... Rab8 {[%clk 0:03:34.6]} 20. Be3 {[%clk 0:02:44.5]} 20... Rfe8 {[%clk
0:03:28.8]} 21. b4 {[%clk 0:02:35.2]} 21... Qd7 {[%clk 0:03:24.2]} 22. Na4
{[%clk 0:02:30.5]} 22... Ne4 {[%clk 0:03:10.6]} 23. Nc5 {[%clk 0:02:25.3]} 23...
Nxc5 {[%clk 0:03:02.2]} 24. bxc5 {[%clk 0:02:20.6]} 24... Rxb1 {[%clk
0:02:59.8]} 25. Rxb1 {[%clk 0:02:18.6]} 25... Bf5 {[%clk 0:02:51.2]} 26. Rb8
{[%clk 0:02:09.9]} 26... Rxb8 {[%clk 0:02:37.6]} 27. Qxb8+ {[%clk 0:02:07.8]}
27... Kh7 {[%clk 0:02:37.4]} 28. Qd6 {[%clk 0:01:53.6]} 28... Qb7 {[%clk
0:02:31.4]} 29. Qf4 {[%clk 0:01:33.8]} 29... Bh3 {[%clk 0:02:21]} 30. Bc1 {[%clk
0:01:11.2]} 30... Qd7 {[%clk 0:02:06.4]} 31. Qe3 {[%clk 0:01:01.9]} 31... Bf5
{[%clk 0:01:59.8]} 32. f4 {[%clk 0:00:56]} 32... Be4 {[%clk 0:01:57.9]} 33. Qf2
{[%clk 0:00:37.7]} 33... f5 {[%clk 0:01:56.5]} 34. Qd2 {[%clk 0:00:30.1]} 34...
Qb7 {[%clk 0:01:52.7]} 35. Kf2 {[%clk 0:00:26.6]} 35... Qb3 {[%clk 0:01:49.4]}
36. Qe3 {[%clk 0:00:19.9]} 36... Qc2+ {[%clk 0:01:47.8]} 37. Qd2 {[%clk
0:00:18.7]} 37... Qc4 {[%clk 0:01:42.6]} 38. Qe3 {[%clk 0:00:14.3]} 38... Qb5
{[%clk 0:01:37.1]} 39. Qd2 {[%clk 0:00:12.1]} 39... Qb7 {[%clk 0:01:30.3]} 40.
Qe3 {[%clk 0:00:10.6]} 40... Qf7 {[%clk 0:01:29.6]} 41. Qd2 {[%clk 0:00:09.4]}
41... Qh5 {[%clk 0:01:29.1]} 42. Kg1 {[%clk 0:00:08.1]} 42... Qf3 {[%clk
0:01:25.2]} 0-1

[Event "Live Chess"]
[Site "Chess.com"]
[Date "2023.05.20"]
[Round "-"]
[White "LodeshChess"]
[Black "BigDom87"]
[Result "1-0"]
[WhiteElo "985"]
[BlackElo "1028"]
[TimeControl "300"]
[EndTime "11:48:23 PDT"]
[Termination "LodeshChess won on time"]

1. e4 {[%clk 0:04:59.4]} 1... c5 {[%clk 0:04:57.2]} 2. Nf3 {[%clk 0:04:57.1]}
2... d6 {[%clk 0:04:55.8]} 3. d4 {[%clk 0:04:55.1]} 3... cxd4 {[%clk 0:04:54.5]}
4. Qxd4 {[%clk 0:04:54.8]} 4... Nc6 {[%clk 0:04:52.6]} 5. Qe3 {[%clk 0:04:54.2]}
5... e6 {[%clk 0:04:47.6]} 6. Be2 {[%clk 0:04:53]} 6... Nf6 {[%clk 0:04:46.1]}
7. O-O {[%clk 0:04:52.5]} 7... Be7 {[%clk 0:04:44.9]} 8. Rd1 {[%clk 0:04:50.8]}
8... Qc7 {[%clk 0:04:43.6]} 9. c4 {[%clk 0:04:50]} 9... O-O {[%clk 0:04:41.5]}
10. Nc3 {[%clk 0:04:49.2]} 10... a6 {[%clk 0:04:39.1]} 11. b3 {[%clk 0:04:48.6]}
11... b6 {[%clk 0:04:36.9]} 12. Ba3 {[%clk 0:04:48.1]} 12... Rd8 {[%clk
0:04:33.1]} 13. Rac1 {[%clk 0:04:47.3]} 13... Bb7 {[%clk 0:04:29.6]} 14. Nd5
{[%clk 0:04:44.9]} 14... exd5 {[%clk 0:04:23.4]} 15. cxd5 {[%clk 0:04:44]} 15...
Qd7 {[%clk 0:04:18.9]} 16. dxc6 {[%clk 0:04:43.1]} 16... Bxc6 {[%clk 0:04:17.2]}
17. e5 {[%clk 0:04:33]} 17... Nd5 {[%clk 0:03:47]} 18. Qd4 {[%clk 0:03:47.2]}
18... Bb7 {[%clk 0:03:28.7]} 19. Bc4 {[%clk 0:03:26.9]} 19... dxe5 {[%clk
0:02:32.8]} 20. Nxe5 {[%clk 0:03:06.4]} 20... Qe6 {[%clk 0:01:36.9]} 21. Bxe7
{[%clk 0:02:53.9]} 21... Qxe7 {[%clk 0:01:33.7]} 22. Nf3 {[%clk 0:02:11.9]}
22... b5 {[%clk 0:01:14]} 23. Bxd5 {[%clk 0:01:52]} 23... Rxd5 {[%clk
0:01:10.9]} 24. Qg4 {[%clk 0:01:36.3]} 24... Rxd1+ {[%clk 0:01:03.4]} 25. Rxd1
{[%clk 0:01:35.1]} 25... Rd8 {[%clk 0:00:54.7]} 26. Rxd8+ {[%clk 0:01:19.7]}
26... Qxd8 {[%clk 0:00:52.8]} 27. h3 {[%clk 0:01:13.7]} 27... Qd1+ {[%clk
0:00:44.4]} 28. Kh2 {[%clk 0:01:11.1]} 28... h6 {[%clk 0:00:29.6]} 29. Qf5
{[%clk 0:00:50.3]} 29... Bxf3 {[%clk 0:00:19.1]} 30. gxf3 {[%clk 0:00:47.7]}
30... Qd6+ {[%clk 0:00:17.4]} 31. Kg2 {[%clk 0:00:43.1]} 31... Qg6+ {[%clk
0:00:16.3]} 32. Qxg6 {[%clk 0:00:41]} 32... fxg6 {[%clk 0:00:15.5]} 33. Kg3
{[%clk 0:00:40.5]} 33... Kf7 {[%clk 0:00:15]} 34. Kf4 {[%clk 0:00:40]} 34... Kf6
{[%clk 0:00:14.5]} 35. h4 {[%clk 0:00:37.9]} 35... a5 {[%clk 0:00:12.6]} 36. Ke4
{[%clk 0:00:32]} 36... a4 {[%clk 0:00:09.6]} 37. b4 {[%clk 0:00:22.9]} 37... g5
{[%clk 0:00:06.8]} 38. hxg5+ {[%clk 0:00:20.7]} 38... hxg5 {[%clk 0:00:05.4]}
39. Kd5 {[%clk 0:00:20.2]} 39... Kf5 {[%clk 0:00:03.9]} 40. Kc6 {[%clk
0:00:19.6]} 40... Kf4 {[%clk 0:00:02.4]} 41. Kxb5 {[%clk 0:00:18.7]} 41... Kxf3
{[%clk 0:00:01.6]} 42. Kc6 {[%clk 0:00:18.2]} 42... Kxf2 {[%clk 0:00:00.8]} 43.
b5 {[%clk 0:00:17.8]} 1-0

[Event "Live Chess"]
[Site "Chess.com"]
[Date "2023.05.20"]
[Round "-"]
[White "KuriyamaMiraiUA"]
[Black "TDCMF"]
[Result "1-0"]
[WhiteElo "689"]
[BlackElo "360"]
[TimeControl "300"]
[EndTime "11:48:29 PDT"]
[Termination "KuriyamaMiraiUA won by checkmate"]

1. d4 {[%clk 0:04:58.7]} 1... d5 {[%clk 0:04:58.6]} 2. c4 {[%clk 0:04:56.5]}
2... e5 {[%clk 0:04:53.7]} 3. dxe5 {[%clk 0:04:54.1]} 3... d4 {[%clk 0:04:50.6]}
4. Nf3 {[%clk 0:04:39.9]} 4... Nc6 {[%clk 0:04:46.9]} 5. Bf4 {[%clk 0:04:32.9]}
5... Bf5 {[%clk 0:04:35.4]} 6. Na3 {[%clk 0:04:26.5]} 6... Bxa3 {[%clk
0:04:25.4]} 7. bxa3 {[%clk 0:04:25]} 7... Qd5 {[%clk 0:04:18.9]} 8. e3 {[%clk
0:04:16.2]} 8... Nxe5 {[%clk 0:04:13.6]} 9. cxd5 {[%clk 0:04:13.3]} 9... Nxf3+
{[%clk 0:04:10.5]} 10. gxf3 {[%clk 0:04:11.8]} 10... O-O-O {[%clk 0:04:08.9]}
11. Qxd4 {[%clk 0:04:06.2]} 11... Nf6 {[%clk 0:04:05.8]} 12. Rc1 {[%clk
0:03:55.5]} 12... Rxd5 {[%clk 0:04:02.7]} 13. Qxa7 {[%clk 0:03:49.7]} 13... Rhd8
{[%clk 0:03:51.6]} 14. Be2 {[%clk 0:03:39.8]} 14... Bh3 {[%clk 0:03:02.9]} 15.
Qa8+ {[%clk 0:03:31.2]} 15... Kd7 {[%clk 0:03:00.9]} 16. Qxb7 {[%clk 0:03:24.2]}
16... Rf5 {[%clk 0:02:39.6]} 17. Qxc7+ {[%clk 0:03:20.6]} 17... Ke8 {[%clk
0:02:36.8]} 18. Qc6+ {[%clk 0:03:06.9]} 18... Rd7 {[%clk 0:02:35]} 19. Bb5
{[%clk 0:02:53.1]} 19... Bg2 {[%clk 0:02:21.6]} 20. Rg1 {[%clk 0:02:11]} 20...
Rxb5 {[%clk 0:02:00.7]} 21. Qxb5 {[%clk 0:02:07.3]} 21... Bxf3 {[%clk
0:01:59.4]} 22. Rc8+ {[%clk 0:01:27.5]} 22... Ke7 {[%clk 0:01:55.2]} 23. Qe5#
{[%clk 0:01:12.5]} 1-0

[Event "Live Chess"]
[Site "Chess.com"]
[Date "2023.05.20"]
[Round "-"]
[White "WelshTiger"]
[Black "BillythekidFellowes"]
[Result "0-1"]
[WhiteElo "2415"]
[BlackElo "2030"]
[TimeControl "300"]
[EndTime "11:48:36 PDT"]
[Termination "BillythekidFellowes won by checkmate"]

1. e4 {[%clk 0:04:57.1]} 1... Nc6 {[%clk 0:04:54.7]} 2. Nf3 {[%clk 0:04:54.7]}
2... d6 {[%clk 0:04:53.7]} 3. h3 {[%clk 0:04:53.1]} 3... Nf6 {[%clk 0:04:49.8]}
4. Nc3 {[%clk 0:04:51.7]} 4... g6 {[%clk 0:04:48.1]} 5. d4 {[%clk 0:04:49.7]}
5... Bg7 {[%clk 0:04:45.1]} 6. Be2 {[%clk 0:04:48.8]} 6... O-O {[%clk
0:04:42.5]} 7. O-O {[%clk 0:04:48]} 7... e5 {[%clk 0:04:41]} 8. dxe5 {[%clk
0:04:39]} 8... dxe5 {[%clk 0:04:40.9]} 9. Bg5 {[%clk 0:04:36.5]} 9... Qxd1
{[%clk 0:04:35.9]} 10. Raxd1 {[%clk 0:04:34.9]} 10... Be6 {[%clk 0:04:34.3]} 11.
Nd5 {[%clk 0:04:21.8]} 11... Bxd5 {[%clk 0:03:21]} 12. exd5 {[%clk 0:04:21.7]}
12... Nb4 {[%clk 0:03:19]} 13. c4 {[%clk 0:04:17.2]} 13... Rfe8 {[%clk
0:03:04.6]} 14. a3 {[%clk 0:04:13.5]} 14... Na6 {[%clk 0:02:55.6]} 15. b4 {[%clk
0:04:12.1]} 15... Ne4 {[%clk 0:02:51.1]} 16. Bd2 {[%clk 0:03:48.8]} 16... Nxd2
{[%clk 0:02:49.2]} 17. Rxd2 {[%clk 0:03:47.3]} 17... Rad8 {[%clk 0:02:45.4]} 18.
c5 {[%clk 0:03:37.8]} 18... Nb8 {[%clk 0:02:43]} 19. Rfd1 {[%clk 0:03:34.2]}
19... e4 {[%clk 0:02:40.6]} 20. Ne1 {[%clk 0:03:27.9]} 20... e3 {[%clk
0:02:04.5]} 21. fxe3 {[%clk 0:03:26.6]} 21... Rxe3 {[%clk 0:02:04.4]} 22. Nc2
{[%clk 0:03:21.4]} 22... Re5 {[%clk 0:02:00.4]} 23. Bc4 {[%clk 0:03:20.2]} 23...
Bh6 {[%clk 0:01:57.3]} 24. Rf2 {[%clk 0:03:16.4]} 24... Re4 {[%clk 0:01:43.6]}
25. Bb3 {[%clk 0:03:15.3]} 25... Bf4 {[%clk 0:01:15.1]} 26. Rdf1 {[%clk
0:03:05.8]} 26... g5 {[%clk 0:01:12.9]} 27. g3 {[%clk 0:02:57.6]} 27... Bxg3
{[%clk 0:01:08.4]} 28. Rxf7 {[%clk 0:02:56.6]} 28... Bf4 {[%clk 0:01:04.6]} 29.
Rf5 {[%clk 0:02:49.9]} 29... Kg7 {[%clk 0:01:00.9]} 30. d6 {[%clk 0:02:29.2]}
30... cxd6 {[%clk 0:00:59.2]} 31. Rd5 {[%clk 0:02:26.9]} 31... Nc6 {[%clk
0:00:55.2]} 32. Rfd1 {[%clk 0:02:23.3]} 32... Re2 {[%clk 0:00:52.2]} 33. cxd6
{[%clk 0:02:20.2]} 33... Ne5 {[%clk 0:00:46.5]} 34. Nd4 {[%clk 0:02:15.3]} 34...
Rb2 {[%clk 0:00:45.3]} 35. Rf1 {[%clk 0:02:08.4]} 35... Be3+ {[%clk 0:00:42.8]}
36. Kh1 {[%clk 0:02:06.1]} 36... Bxd4 {[%clk 0:00:41.4]} 37. Bd1 {[%clk
0:01:59.9]} 37... Rd2 {[%clk 0:00:37.7]} 38. Bg4 {[%clk 0:01:54]} 38... Nxg4
{[%clk 0:00:36.6]} 39. hxg4 {[%clk 0:01:53.4]} 39... Rd7 {[%clk 0:00:30]} 40.
Rxg5+ {[%clk 0:01:50.4]} 40... Kh6 {[%clk 0:00:29.4]} 41. Rd5 {[%clk 0:01:43.4]}
41... Kg6 {[%clk 0:00:28.9]} 42. Rf8 {[%clk 0:01:38.2]} 42... Bg7 {[%clk
0:00:26.7]} 43. Rb8 {[%clk 0:01:33.2]} 43... Rxd5 {[%clk 0:00:24.9]} 44. Rc8
{[%clk 0:01:30.3]} 44... R7xd6 {[%clk 0:00:24]} 45. Kg2 {[%clk 0:01:29.6]} 45...
Rd2+ {[%clk 0:00:23.6]} 46. Kf3 {[%clk 0:01:29.5]} 46... R6d3+ {[%clk 0:00:23]}
47. Ke4 {[%clk 0:01:29.2]} 47... Rd4+ {[%clk 0:00:22.6]} 48. Ke3 {[%clk
0:01:28.7]} 48... Bh6+ {[%clk 0:00:20.4]} 49. Kf3 {[%clk 0:01:27.3]} 49... R2d3+
{[%clk 0:00:19.6]} 50. Ke2 {[%clk 0:01:26.6]} 50... Re3+ {[%clk 0:00:19]} 51.
Kf2 {[%clk 0:01:23.8]} 51... Rd2+ {[%clk 0:00:18.4]} 52. Kf1 {[%clk 0:01:23.5]}
52... Rxa3 {[%clk 0:00:17.8]} 53. Rc1 {[%clk 0:01:20.4]} 53... Raa2 {[%clk
0:00:17.1]} 54. Kg1 {[%clk 0:01:19.1]} 54... Rg2+ {[%clk 0:00:16.1]} 55. Kf1
{[%clk 0:01:18.8]} 55... Bxc1 {[%clk 0:00:15.1]} 56. Ke1 {[%clk 0:01:17.5]}
56... Be3 {[%clk 0:00:14.2]} 57. Kd1 {[%clk 0:01:17.4]} 57... Ra1# {[%clk
0:00:13.3]} 0-1

[Event "Live Chess"]
[Site "Chess.com"]
[Date "2023.05.20"]
[Round "-"]
[White "Bob2pen"]
[Black "hturner40"]
[Result "1-0"]
[WhiteElo "1838"]
[BlackElo "1799"]
[TimeControl "300"]
[EndTime "11:48:40 PDT"]
[Termination "Bob2pen won on time"]

1. c4 {[%clk 0:04:54.7]} 1... Nc6 {[%clk 0:04:57.5]} 2. g3 {[%clk 0:04:53.6]}
2... e5 {[%clk 0:04:56.1]} 3. Bg2 {[%clk 0:04:52.4]} 3... f5 {[%clk 0:04:55.2]}
4. Nc3 {[%clk 0:04:51.3]} 4... Nf6 {[%clk 0:04:54.3]} 5. d3 {[%clk 0:04:50.4]}
5... Bb4 {[%clk 0:04:52.9]} 6. Nf3 {[%clk 0:04:49.1]} 6... e4 {[%clk 0:04:49.6]}
7. dxe4 {[%clk 0:04:42.8]} 7... Nxe4 {[%clk 0:04:48.3]} 8. Bd2 {[%clk 0:04:39]}
8... Bxc3 {[%clk 0:04:26.6]} 9. Bxc3 {[%clk 0:04:36.1]} 9... O-O {[%clk
0:04:20.3]} 10. O-O {[%clk 0:04:26.6]} 10... d6 {[%clk 0:04:12.4]} 11. Bd4
{[%clk 0:04:22.1]} 11... Be6 {[%clk 0:03:51.2]} 12. b3 {[%clk 0:04:18.6]} 12...
d5 {[%clk 0:03:42.2]} 13. cxd5 {[%clk 0:04:15.4]} 13... Qxd5 {[%clk 0:03:34.9]}
14. Bb2 {[%clk 0:04:08.3]} 14... Rad8 {[%clk 0:03:27.6]} 15. Qxd5 {[%clk
0:04:05.8]} 15... Rxd5 {[%clk 0:03:19.7]} 16. Rfd1 {[%clk 0:04:03.7]} 16... Rfd8
{[%clk 0:03:16.8]} 17. Rxd5 {[%clk 0:04:00.9]} 17... Rxd5 {[%clk 0:03:10.5]} 18.
e3 {[%clk 0:03:58.2]} 18... Rc5 {[%clk 0:02:59.7]} 19. Rc1 {[%clk 0:03:42.8]}
19... Rxc1+ {[%clk 0:02:42.1]} 20. Bxc1 {[%clk 0:03:41.4]} 20... Nc3 {[%clk
0:02:40.9]} 21. Bd2 {[%clk 0:03:38.1]} 21... Nxa2 {[%clk 0:02:35.8]} 22. Nd4
{[%clk 0:03:31]} 22... Nxd4 {[%clk 0:02:25.7]} 23. exd4 {[%clk 0:03:29]} 23...
c6 {[%clk 0:02:11.2]} 24. b4 {[%clk 0:03:22.7]} 24... Kf7 {[%clk 0:01:47.2]} 25.
Kf1 {[%clk 0:03:21.6]} 25... Bb3 {[%clk 0:01:22.4]} 26. Ke2 {[%clk 0:03:14.1]}
26... Ke6 {[%clk 0:01:14]} 27. Ke3 {[%clk 0:03:10]} 27... Bd5 {[%clk 0:01:10.3]}
28. Bf1 {[%clk 0:03:04.9]} 28... b6 {[%clk 0:01:05]} 29. Bd3 {[%clk 0:03:02.5]}
29... a5 {[%clk 0:00:49.1]} 30. bxa5 {[%clk 0:02:59.7]} 30... bxa5 {[%clk
0:00:47.3]} 31. Bxa5 {[%clk 0:02:58.5]} 31... Nc1 {[%clk 0:00:45.3]} 32. Bc7
{[%clk 0:02:46.7]} 32... Nxd3 {[%clk 0:00:41.3]} 33. Kxd3 {[%clk 0:02:44.9]}
33... g6 {[%clk 0:00:34.5]} 34. Be5 {[%clk 0:02:40.1]} 34... Kd7 {[%clk
0:00:23.2]} 35. Bg7 {[%clk 0:02:38.4]} 35... Kd6 {[%clk 0:00:18.8]} 36. Ke3
{[%clk 0:02:37.5]} 36... c5 {[%clk 0:00:11.8]} 37. dxc5+ {[%clk 0:02:35.5]}
37... Kxc5 {[%clk 0:00:10.6]} 38. Kf4 {[%clk 0:02:34.8]} 38... Bg8 {[%clk
0:00:09.2]} 39. Ke5 {[%clk 0:02:33.6]} 39... Kc4 {[%clk 0:00:06.1]} 40. Bh6
{[%clk 0:02:32.6]} 40... Kd3 {[%clk 0:00:04.6]} 41. Be3 {[%clk 0:02:31.3]} 41...
Ke2 {[%clk 0:00:00.6]} 42. Kf6 {[%clk 0:02:30.2]} 1-0

[Event "Live Chess"]
[Site "Chess.com"]
[Date "2023.05.20"]
[Round "-"]
[White "ACx04"]
[Black "LaupMiths"]
[Result "0-1"]
[WhiteElo "417"]
[BlackElo "1821"]
[TimeControl "300"]
[EndTime "11:48:56 PDT"]
[Termination "LaupMiths won by checkmate"]

1. e4 {[%clk 0:04:56.8]} 1... c5 {[%clk 0:04:57]} 2. c4 {[%clk 0:04:55]} 2... e5
{[%clk 0:04:54.3]} 3. Bd3 {[%clk 0:04:53.3]} 3... Nc6 {[%clk 0:04:52.5]} 4. b3
{[%clk 0:04:52.1]} 4... g6 {[%clk 0:04:51.2]} 5. Bb2 {[%clk 0:04:50.1]} 5... Bg7
{[%clk 0:04:50.6]} 6. Nc3 {[%clk 0:04:47.7]} 6... d6 {[%clk 0:04:49.7]} 7. Nd5
{[%clk 0:04:46.5]} 7... Nge7 {[%clk 0:04:47.9]} 8. Nxe7 {[%clk 0:04:44.3]} 8...
Qxe7 {[%clk 0:04:43.7]} 9. Nf3 {[%clk 0:04:41.4]} 9... Be6 {[%clk 0:04:42]} 10.
O-O {[%clk 0:04:38.7]} 10... O-O {[%clk 0:04:39.9]} 11. Qe2 {[%clk 0:04:28.7]}
11... h6 {[%clk 0:04:36.7]} 12. h3 {[%clk 0:04:27.2]} 12... Rae8 {[%clk
0:04:31]} 13. g4 {[%clk 0:04:25]} 13... f5 {[%clk 0:04:23.1]} 14. gxf5 {[%clk
0:04:23.5]} 14... gxf5 {[%clk 0:04:21]} 15. exf5 {[%clk 0:04:22.4]} 15... Bxf5
{[%clk 0:04:19.5]} 16. Bxf5 {[%clk 0:04:21.5]} 16... Rxf5 {[%clk 0:04:18.5]} 17.
Qe4 {[%clk 0:04:19]} 17... Rf4 {[%clk 0:04:12.4]} 18. Qd3 {[%clk 0:04:14]} 18...
Kh8 {[%clk 0:03:59.8]} 19. a4 {[%clk 0:04:11]} 19... Ref8 {[%clk 0:03:53.6]} 20.
Kg2 {[%clk 0:03:57.7]} 20... Rg8 {[%clk 0:03:39.8]} 21. Nh2 {[%clk 0:03:55.1]}
21... Bf6+ {[%clk 0:03:37.2]} 22. Kh1 {[%clk 0:03:50.4]} 22... Bh4 {[%clk
0:03:32.2]} 23. f3 {[%clk 0:03:45.5]} 23... Rg3 {[%clk 0:03:11.3]} 24. Qe2
{[%clk 0:03:26.4]} 24... Rxh3 {[%clk 0:03:01.3]} 25. Qg2 {[%clk 0:03:21.6]}
25... Rg3 {[%clk 0:02:59.7]} 26. Qf2 {[%clk 0:03:15.8]} 26... Qe6 {[%clk
0:02:41.9]} 27. Rg1 {[%clk 0:03:11.4]} 27... Qh3 {[%clk 0:02:38.2]} 28. Qxg3
{[%clk 0:02:35.7]} 28... Bxg3 {[%clk 0:02:36.1]} 29. Rxg3 {[%clk 0:02:34.2]}
29... Qxg3 {[%clk 0:02:34.7]} 30. Rg1 {[%clk 0:02:29.8]} 30... Qh3 {[%clk
0:02:26.2]} 31. d3 {[%clk 0:02:23.7]} 31... Rxf3 {[%clk 0:02:21.8]} 32. Bc1
{[%clk 0:02:20.6]} 32... Rxd3 {[%clk 0:02:18.9]} 33. a5 {[%clk 0:01:59.2]} 33...
Nd4 {[%clk 0:02:15.1]} 34. Re1 {[%clk 0:01:48]} 34... Nf3 {[%clk 0:02:11.9]} 35.
Rf1 {[%clk 0:01:45.1]} 35... Qxh2# {[%clk 0:02:09.2]} 0-1

[Event "Live Chess"]
[Site "Chess.com"]
[Date "2023.05.20"]
[Round "-"]
[White "Driftboard"]
[Black "ramses-IIG"]
[Result "1-0"]
[WhiteElo "720"]
[BlackElo "787"]
[TimeControl "300"]
[EndTime "11:48:56 PDT"]
[Termination "Driftboard won by checkmate"]

1. e4 {[%clk 0:04:59.5]} 1... d5 {[%clk 0:04:59.9]} 2. exd5 {[%clk 0:04:58.1]}
2... Qxd5 {[%clk 0:04:59.8]} 3. Nc3 {[%clk 0:04:57.4]} 3... Qe6+ {[%clk
0:04:59.7]} 4. Qe2 {[%clk 0:04:54.8]} 4... Qg6 {[%clk 0:04:59.6]} 5. Nf3 {[%clk
0:04:51.3]} 5... Qxc2 {[%clk 0:04:57.8]} 6. Qd3 {[%clk 0:04:43.7]} 6... Qxd3
{[%clk 0:04:55.2]} 7. Bxd3 {[%clk 0:04:42.3]} 7... c6 {[%clk 0:04:54.1]} 8. O-O
{[%clk 0:04:41.7]} 8... Bg4 {[%clk 0:04:52.5]} 9. Be2 {[%clk 0:04:38.4]} 9... f6
{[%clk 0:04:48.5]} 10. h3 {[%clk 0:04:37.7]} 10... Bxf3 {[%clk 0:04:46.8]} 11.
Bxf3 {[%clk 0:04:34.1]} 11... e5 {[%clk 0:04:46.7]} 12. Rd1 {[%clk 0:04:29.4]}
12... Bb4 {[%clk 0:04:43.9]} 13. d4 {[%clk 0:04:26.8]} 13... exd4 {[%clk
0:04:10.5]} 14. Rxd4 {[%clk 0:04:22.2]} 14... Bxc3 {[%clk 0:04:09.3]} 15. bxc3
{[%clk 0:04:13.6]} 15... Ne7 {[%clk 0:04:08.8]} 16. Ba3 {[%clk 0:04:02]} 16...
b6 {[%clk 0:04:00.8]} 17. Re1 {[%clk 0:03:57.9]} 17... a5 {[%clk 0:03:50.6]} 18.
Rxe7+ {[%clk 0:03:53.3]} 18... Kf8 {[%clk 0:03:49]} 19. Rd8# {[%clk 0:03:51]}
1-0

[Event "Live Chess"]
[Site "Chess.com"]
[Date "2023.05.20"]
[Round "-"]
[White "SavagePawn7"]
[Black "mattlirious"]
[Result "1-0"]
[WhiteElo "780"]
[BlackElo "1310"]
[TimeControl "300"]
[EndTime "11:48:58 PDT"]
[Termination "SavagePawn7 won by checkmate"]

1. e4 {[%clk 0:04:57.6]} 1... c6 {[%clk 0:04:58.4]} 2. d4 {[%clk 0:04:55.7]}
2... d5 {[%clk 0:04:57.2]} 3. Nc3 {[%clk 0:04:54.4]} 3... dxe4 {[%clk
0:04:55.9]} 4. Bc4 {[%clk 0:04:52.9]} 4... f5 {[%clk 0:04:52]} 5. f3 {[%clk
0:04:47.8]} 5... e6 {[%clk 0:04:40.1]} 6. fxe4 {[%clk 0:04:41.6]} 6... fxe4
{[%clk 0:04:36.7]} 7. Nxe4 {[%clk 0:04:30.8]} 7... Nf6 {[%clk 0:04:29.1]} 8.
Nxf6+ {[%clk 0:04:26.7]} 8... Qxf6 {[%clk 0:04:27.8]} 9. Qf3 {[%clk 0:04:11.8]}
9... Be7 {[%clk 0:04:21]} 10. Qxf6 {[%clk 0:04:08]} 10... Bxf6 {[%clk
0:04:18.3]} 11. c3 {[%clk 0:04:02.7]} 11... O-O {[%clk 0:04:15.8]} 12. Be3
{[%clk 0:03:52.5]} 12... Re8 {[%clk 0:04:11.3]} 13. O-O-O {[%clk 0:03:49.5]}
13... Kh8 {[%clk 0:04:09.4]} 14. Nf3 {[%clk 0:03:47]} 14... e5 {[%clk
0:03:52.5]} 15. dxe5 {[%clk 0:03:31.3]} 15... Bxe5 {[%clk 0:03:50.6]} 16. Nxe5
{[%clk 0:03:27.6]} 16... Rxe5 {[%clk 0:03:47.6]} 17. Rd8+ {[%clk 0:03:24.3]}
17... Re8 {[%clk 0:03:44.1]} 18. Rxe8# {[%clk 0:03:22.8]} 1-0